fUST/lending_fUST_20240119
["ID","MTS","AMOUNT","RATE_DAILY","PERIOD"]
[312102186,1705625442212,-2091.715366,0.00034662,2]
[312102187,1705625442222,-2091.715366,0.00034662,2]
[312102188,1705625442231,-2091.715366,0.00034662,2]
[312102189,1705625442240,-2091.715366,0.00034662,2]
[312102190,1705625442250,-500.0,0.00034662,3]
[312102191,1705625442259,-500.0,0.00034662,3]
[312102192,1705625442268,-500.0,0.00034662,3]
[312102193,1705625442277,-500.0,0.00034662,3]
[312102194,1705625442287,-500.0,0.00034662,3]
[312102195,1705625442296,-500.0,0.00034662,3]
[312102196,1705625442306,-502.84870638,0.00034662,3]
[312102197,1705625442315,-507.35991574,0.00034662,3]
[312102198,1705625442324,-2360.89,0.00034662,3]
[312102199,1705625442333,-500.0,0.00034662,3]
[312102200,1705625442342,-500.0,0.00034662,3]
[312102201,1705625442351,-1510.07,0.00034662,3]
[312102202,1705625442361,-861.18,0.00034662,3]
[312102203,1705625442370,-500.0,0.00034662,3]
[312102204,1705625442381,-500.0,0.00034662,3]
[312102205,1705625442390,-500.0,0.00034662,3]
[312102206,1705625442399,-2133.38,0.00034662,3]
[312102207,1705625442410,-500.0,0.00034662,3]
[312102208,1705625442419,-500.0,0.00034662,3]
[312102209,1705625442428,-500.0,0.00034662,3]
[312102210,1705625442437,-366.94048723,0.00034662,3]
[312102211,1705625442447,-966.93,0.00034662,3]
[312102212,1705625442457,-17328.84,0.00034662,3]
[312102213,1705625442466,-500.0,0.00034662,3]
[312102214,1705625442475,-500.0,0.00034662,3]
[312102215,1705625442484,-623.03,0.00034662,3]
[312102216,1705625442493,-500.0,0.00034662,3]
[312102217,1705625442502,-500.0,0.00034662,3]
[312102218,1705625442511,-500.0,0.00034662,3]
[312102219,1705625442520,-1933.59,0.00034662,3]
[312102220,1705625442529,-500.0,0.00034662,3]
[312102221,1705625442539,-3658.34,0.00034662,3]
[312102222,1705625442548,-2236.65,0.00034662,3]
[312102223,1705625442558,-500.0,0.00034662,3]
[312102224,1705625442567,-500.0,0.00034662,3]
[312102225,1705625442577,-502.54,0.00034662,3]
[312102226,1705625442586,-1754.03,0.00034662,3]
[312102227,1705625442595,-500.0,0.00034662,5]
[312102228,1705625442604,-500.0,0.00034662,3]
[312102229,1705625442613,-1955.28,0.00034662,3]
[312102230,1705625442623,-572.91252704,0.00034662,3]
[312102231,1705625442631,-10585.88,0.00034662,3]
[312102232,1705625442641,-500.0,0.00034662,3]
[312102233,1705625442650,-500.0,0.00034662,3]
[312102234,1705625442659,-495.22708729,0.00034662,3]
[312102235,1705625442668,-3286.24,0.00034662,3]
[312102236,1705625442678,-1908.6,0.00034662,3]
[312102237,1705625442687,-438.80140273,0.00034662,3]
[312102238,1705625442696,-827.49,0.00034662,3]
[312102239,1705625442706,-436.3188985,0.00034662,3]
[312102240,1705625442715,-500.0,0.00034662,3]
[312102241,1705625442724,-500.0,0.00034662,3]
[312102242,1705625442733,-1936.64,0.00034662,3]
[312102243,1705625442743,-500.0,0.00034662,3]
[312102244,1705625442751,-1037.25,0.00034662,3]
[312102245,1705625442761,-813.16,0.00034662,3]
[312102246,1705625442769,-3748.65,0.00034662,3]
[312102247,1705625442778,-500.0,0.00034662,3]
[312102248,1705625442787,-500.0,0.00034662,3]
[312102249,1705625442796,-500.0,0.00034662,3]
[312102250,1705625442805,-721.55,0.00034662,3]
[312102251,1705625442814,-500.0,0.00034662,3]
[312102252,1705625442823,-500.0,0.00034662,3]
[312102253,1705625442833,-715.86,0.00034662,3]
[312102254,1705625442842,-500.0,0.00034662,3]
[312102255,1705625442851,-502.46808783,0.00034662,3]
[312102256,1705625442860,-783.17,0.00034662,3]
[312102257,1705625442869,-500.0,0.00034662,3]
[312102258,1705625442878,-500.0,0.00034662,3]
[312102259,1705625442887,-4642.75,0.00034662,3]
[312102260,1705625442896,-500.0,0.00034662,3]
[312102261,1705625442905,-500.0,0.00034662,3]
[312102262,1705625442914,-4849.07,0.00034662,3]
[312102263,1705625442923,-500.0,0.00034662,3]
[312102264,1705625442932,-500.0,0.00034662,3]
[312102265,1705625442941,-500.0,0.00034662,3]
[312102266,1705625442950,-580.06582805,0.00034662,3]
[312102267,1705625442960,-873.57,0.00034662,3]
[312102268,1705625442969,-500.0,0.00034662,3]
[312102269,1705625442978,-500.0,0.00034662,3]
[312102270,1705625442987,-500.0,0.00034662,3]
[312102271,1705625442996,-500.0,0.00034662,3]
[312102273,1705625443006,-500.0,0.00034662,3]
[312102275,1705625443015,-1471.33,0.00034662,3]
[312102277,1705625443024,-500.0,0.00034662,3]
[312102279,1705625443033,-500.0,0.00034662,3]
[312102281,1705625443042,-637.61,0.00034662,3]
[312102283,1705625443054,-500.0,0.00034662,3]
[312102285,1705625443063,-500.0,0.00034662,3]
[312102287,1705625443072,-512.2992539,0.00034662,3]
[312102289,1705625443081,-500.0,0.00034662,3]
[312102291,1705625443090,-500.0,0.00034662,3]
[312102292,1705625443099,-500.0,0.00034662,14]
[312102293,1705625443108,-564.84649828,0.00034662,3]
[312102294,1705625443117,-1295.34,0.00034662,3]
[312102297,1705625443126,-351.86916281,0.00034662,3]
[312102300,1705625443134,-636.38,0.00034662,3]
[312102302,1705625443143,-500.0,0.00034662,3]
[312102305,1705625443152,-216.07223058,0.00034662,3]
[312102307,1705625443161,-500.0,0.00034662,3]
[312102310,1705625443171,-353.52786703,0.00034662,3]
[312102311,1705625443180,-500.0,0.00034662,3]
[312102314,1705625443189,-500.0,0.00034662,3]
[312102316,1705625443199,-173.0,0.00034906,30]
[312102317,1705625443208,-173.0,0.00034916,30]
[312102318,1705625443218,-173.0,0.00034926,30]
[312102319,1705625443228,-500.0,0.00034935,2]
[312102320,1705625443238,-2091.715366,0.00034936,2]
[312102321,1705625443248,-2091.715366,0.00034936,2]
[312102322,1705625443258,-500.0,0.00034936,3]
[312102323,1705625443269,-500.0,0.00034936,3]
[312102324,1705625443279,-500.0,0.00034936,3]
[312102325,1705625443290,-500.0,0.00034936,3]
[312102326,1705625443301,-500.0,0.00034936,3]
[312102327,1705625443370,-500.0,0.00034936,3]
[312102328,1705625443387,-2360.89,0.00034936,3]
[312102329,1705625443397,-503.95602076,0.00034936,3]
[312102330,1705625443406,-1510.07,0.00034936,3]
[312102331,1705625443418,-861.18,0.00034936,3]
[312102332,1705625443427,-500.0,0.00034936,3]
[312102333,1705625443437,-500.0,0.00034936,3]
[312102334,1705625443446,-500.0,0.00034936,3]
[312102335,1705625443459,-2133.38,0.00034936,3]
[312102336,1705625443468,-576.43480643,0.00034936,3]
[312102337,1705625443478,-500.0,0.00034936,3]
[312102338,1705625443487,-966.93,0.00034936,3]
[312102339,1705625443496,-17328.84,0.00034936,3]
[312102340,1705625443506,-500.0,0.00034936,3]
[312102341,1705625443515,-623.03,0.00034936,3]
[312102342,1705625443525,-505.78915655,0.00034936,3]
[312102344,1705625443534,-500.0,0.00034936,3]
[312102345,1705625443543,-500.0,0.00034936,3]
[312102346,1705625443552,-1933.59,0.00034936,3]
[312102347,1705625443561,-500.0,0.00034936,3]
[312102348,1705625443570,-3658.34,0.00034936,3]
[312102349,1705625443579,-2236.65,0.00034936,3]
[312102350,1705625443588,-500.0,0.00034936,3]
[312102351,1705625443597,-502.54,0.00034936,3]
[312102352,1705625443606,-1754.03,0.00034936,3]
[312102353,1705625443615,-1955.28,0.00034936,3]
[312102354,1705625443625,-10585.88,0.00034936,3]
[312102355,1705625443634,-261.51843576,0.00034936,3]
[312102356,1705625443643,-500.0,0.00034936,3]
[312102357,1705625443652,-3286.24,0.00034936,3]
[312102358,1705625443661,-1908.6,0.00034936,3]
[312102359,1705625443670,-827.49,0.00034936,3]
[312102360,1705625443680,-500.0,0.00034936,3]
[312102361,1705625443689,-1936.64,0.00034936,3]
[312102362,1705625443698,-1037.25,0.00034936,3]
[312102363,1705625443708,-813.16,0.00034936,3]
[312102364,1705625443717,-3748.65,0.00034936,3]
[312102365,1705625443726,-500.0,0.00034936,3]
[312102366,1705625443735,-500.0,0.00034936,3]
[312102367,1705625443745,-721.55,0.00034936,3]
[312102368,1705625443754,-312.93679802,0.00034936,3]
[312102369,1705625443765,-715.86,0.00034936,3]
[312102370,1705625443774,-500.0,0.00034936,3]
[312102371,1705625443784,-783.17,0.00034936,3]
[312102372,1705625443793,-627.8606387,0.00034936,3]
[312102373,1705625443803,-4642.75,0.00034936,3]
[312102374,1705625443812,-502.45845128,0.00034936,3]
[312102375,1705625443821,-502.07568279,0.00034936,3]
[312102376,1705625443831,-4849.07,0.00034936,3]
[312102377,1705625443840,-500.0,0.00034936,3]
[312102379,1705625443849,-186.77148725,0.00034936,3]
[312102380,1705625443858,-873.57,0.00034936,3]
[312102381,1705625443867,-500.0,0.00034936,3]
[312102382,1705625443877,-500.0,0.00034936,3]
[312102383,1705625443886,-500.0,0.00034936,3]
[312102384,1705625443895,-500.0,0.00034936,3]
[312102385,1705625443905,-1471.33,0.00034936,3]
[312102386,1705625443916,-503.76180675,0.00034936,3]
[312102387,1705625443926,-637.61,0.00034936,3]
[312102388,1705625443935,-500.0,0.00034936,3]
[312102389,1705625443944,-506.55486658,0.00034936,3]
[312102390,1705625443954,-500.0,0.00034936,3]
[312102391,1705625443964,-500.0,0.00034936,3]
[312102392,1705625443973,-500.0,0.00034936,3]
[312102393,1705625443983,-500.0,0.00034936,14]
[312102394,1705625443992,-1295.34,0.00034936,3]
[312102395,1705625444001,-636.38,0.00034936,3]
[312102396,1705625444010,-500.0,0.00034936,3]
[312102397,1705625444019,-500.0,0.00034936,3]
[312102398,1705625444029,-500.0,0.00034936,3]
[312102399,1705625444039,-430.86875032,0.0003499,6]
[312102400,1705625444050,-333.00867696,0.00035,4]
[312102401,1705625444060,-154.87609912,0.00035,4]
[312102402,1705625444070,-3119.34141957,0.00035,17]
[312102403,1705625444079,-154.95351395,0.00035,2]
[312102404,1705625444088,-154.95351395,0.00035,4]
[312102405,1705625444097,-504.23660662,0.00035209,2]
[312102406,1705625444106,-500.0,0.0003521,3]
[312102407,1705625444115,-486.11043517,0.0003521,3]
[312102408,1705625444125,-500.0,0.0003521,3]
[312102409,1705625444133,-500.0,0.0003521,3]
[312102410,1705625444142,-500.0,0.0003521,3]
[312102411,1705625444152,-2360.89,0.0003521,3]
[312102412,1705625444161,-1510.07,0.0003521,3]
[312102413,1705625444170,-861.18,0.0003521,3]
[312102414,1705625444179,-500.0,0.0003521,3]
[312102415,1705625444188,-500.0,0.0003521,3]
[312102416,1705625444197,-2133.38,0.0003521,3]
[312102417,1705625444206,-966.93,0.0003521,3]
[312102419,1705625444215,-17328.84,0.0003521,3]
[312102420,1705625444225,-623.03,0.0003521,3]
[312102421,1705625444234,-500.0,0.0003521,3]
[312102422,1705625444243,-500.0,0.0003521,3]
[312102423,1705625444252,-1933.59,0.0003521,3]
[312102424,1705625444261,-500.0,0.0003521,3]
[312102425,1705625444270,-3658.34,0.0003521,3]
[312102426,1705625444279,-2236.65,0.0003521,3]
[312102427,1705625444288,-502.54,0.0003521,3]
[312102428,1705625444298,-1754.03,0.0003521,3]
[312102429,1705625444307,-1955.28,0.0003521,3]
[312102430,1705625444316,-10585.88,0.0003521,3]
[312102431,1705625444326,-500.0,0.0003521,3]
[312102432,1705625444334,-3286.24,0.0003521,3]
[312102433,1705625444344,-1908.6,0.0003521,3]
[312102434,1705625444353,-827.49,0.0003521,3]
[312102435,1705625444363,-500.0,0.0003521,3]
[312102436,1705625444373,-1936.64,0.0003521,3]
[312102437,1705625444383,-1037.25,0.0003521,3]
[312102438,1705625444392,-813.16,0.0003521,3]
[312102439,1705625444401,-3748.65,0.0003521,3]
[312102440,1705625444410,-500.0,0.0003521,3]
[312102441,1705625444420,-500.0,0.0003521,3]
[312102442,1705625444429,-721.55,0.0003521,3]
[312102443,1705625444438,-715.86,0.0003521,3]
[312102444,1705625444447,-500.0,0.0003521,3]
[312102445,1705625444458,-783.17,0.0003521,3]
[312102446,1705625444468,-4642.75,0.0003521,3]
[312102447,1705625444478,-4849.07,0.0003521,3]
[312102448,1705625444487,-500.0,0.0003521,3]
[312102449,1705625444496,-873.57,0.0003521,3]
[312102450,1705625444505,-500.0,0.0003521,3]
[312102451,1705625444514,-500.0,0.0003521,3]
[312102452,1705625444522,-500.0,0.0003521,3]
[312102453,1705625444531,-1471.33,0.0003521,3]
[312102454,1705625444541,-637.61,0.0003521,3]
[312102455,1705625444550,-500.0,0.0003521,3]
[312102456,1705625444559,-500.0,0.0003521,14]
[312102457,1705625444568,-1295.34,0.0003521,3]
[312102458,1705625444577,-636.38,0.0003521,3]
[312102459,1705625444586,-500.0,0.0003521,3]
[312102460,1705625444595,-500.0,0.0003521,3]
[312102461,1705625444604,-500.0,0.0003521,3]
[312102462,1705625444613,-2091.715366,0.0003521,2]
[312102463,1705625444622,-2091.715366,0.0003521,2]
[312102464,1705625444631,-500.0,0.00035484,3]
[312102465,1705625444640,-500.0,0.00035484,3]
[312102466,1705625444650,-500.0,0.00035484,3]
[312102467,1705625444659,-500.0,0.00035484,3]
[312102468,1705625444668,-2360.89,0.00035484,3]
[312102469,1705625444678,-1510.07,0.00035484,3]
[312102470,1705625444687,-861.18,0.00035484,3]
[312102471,1705625444696,-500.0,0.00035484,3]
[312102472,1705625444705,-2133.38,0.00035484,3]
[312102473,1705625444714,-17328.84,0.00035484,3]
[312102474,1705625444723,-966.93,0.00035484,3]
[312102475,1705625444732,-623.03,0.00035484,3]
[312102476,1705625444741,-500.0,0.00035484,3]
[312102477,1705625444750,-500.0,0.00035484,3]
[312102478,1705625444759,-1933.59,0.00035484,3]
[312102479,1705625444768,-500.0,0.00035484,3]
[312102480,1705625444777,-3658.34,0.00035484,3]
[312102481,1705625444787,-2236.65,0.00035484,3]
[312102482,1705625444796,-502.54,0.00035484,3]
[312102483,1705625444805,-1754.03,0.00035484,3]
[312102484,1705625444814,-1955.28,0.00035484,3]
[312102485,1705625444823,-10585.88,0.00035484,3]
[312102486,1705625444832,-500.0,0.00035484,3]
[312102487,1705625444841,-3286.24,0.00035484,3]
[312102488,1705625444850,-1908.6,0.00035484,3]
[312102489,1705625444859,-827.49,0.00035484,3]
[312102490,1705625444868,-1936.64,0.00035484,3]
[312102491,1705625444877,-1037.25,0.00035484,3]
[312102492,1705625444886,-813.16,0.00035484,3]
[312102493,1705625444895,-3748.65,0.00035484,3]
[312102494,1705625444968,-500.0,0.00035484,3]
[312102495,1705625444978,-500.0,0.00035484,3]
[312102496,1705625444986,-721.55,0.00035484,3]
[312102497,1705625444995,-715.86,0.00035484,3]
[312102498,1705625445004,-500.0,0.00035484,3]
[312102499,1705625445013,-783.17,0.00035484,3]
[312102500,1705625445022,-4642.75,0.00035484,3]
[312102501,1705625445031,-4849.07,0.00035484,3]
[312102502,1705625445040,-873.57,0.00035484,3]
[312102503,1705625445049,-500.0,0.00035484,3]
[312102504,1705625445059,-500.0,0.00035484,3]
[312102505,1705625445067,-1471.33,0.00035484,3]
[312102506,1705625445076,-637.61,0.00035484,3]
[312102507,1705625445086,-500.0,0.00035484,14]
[312102508,1705625445095,-1295.34,0.00035484,3]
[312102509,1705625445104,-636.38,0.00035484,3]
[312102510,1705625445113,-500.0,0.00035484,3]
[312102511,1705625445122,-2091.715366,0.00035484,2]
[312102512,1705625445133,-2091.715366,0.00035484,2]
[312102513,1705625445141,-2091.715366,0.00035484,2]
[312102514,1705625445151,-2091.715366,0.00035484,2]
[312102515,1705625445159,-150.95004265,0.00035616,7]
[312102516,1705625445168,-256.223609,0.00035616,120]
[312102517,1705625445178,-419.27162824,0.00035722,2]
[312102518,1705625445187,-471.33694125,0.00035757,2]
[312102519,1705625445196,-500.0,0.00035757,4]
[312102520,1705625445205,-500.0,0.00035757,4]
[312102521,1705625445214,-294.59443179,0.00035757,4]
[312102522,1705625445224,-500.0,0.00035757,4]
[312102523,1705625445233,-500.0,0.00035757,4]
[312102524,1705625445242,-434.00164402,0.00035757,4]
[312102525,1705625445251,-500.0,0.00035757,4]
[312102526,1705625445260,-500.0,0.00035757,4]
[312102527,1705625445269,-500.0,0.00035757,4]
[312102528,1705625445278,-500.0,0.00035757,4]
[312102529,1705625445287,-500.0,0.00035757,4]
[312102530,1705625445296,-500.0,0.00035757,4]
[312102531,1705625445306,-500.0,0.00035757,4]
[312102532,1705625445315,-500.0,0.00035757,4]
[312102533,1705625445325,-394.58414412,0.00035757,4]
[312102534,1705625445334,-500.0,0.00035757,4]
[312102535,1705625445344,-500.0,0.00035757,4]
[312102536,1705625445354,-360.47826785,0.00035757,4]
[312102537,1705625445364,-272.95556002,0.00035757,4]
[312102538,1705625445373,-500.0,0.00035757,4]
[312102539,1705625445384,-500.0,0.00035757,4]
[312102540,1705625445393,-500.0,0.00035757,4]
[312102541,1705625445402,-500.0,0.00035757,4]
[312102542,1705625445411,-500.0,0.00035757,4]
[312102543,1705625445421,-365.85700207,0.00035757,4]
[312102544,1705625445431,-500.0,0.00035757,4]
[312102545,1705625445440,-500.0,0.00035757,4]
[312102546,1705625445450,-500.0,0.00035757,7]
[312102547,1705625445460,-500.0,0.00035757,7]
[312102548,1705625445469,-500.0,0.00035757,7]
[312102549,1705625445478,-360.89266216,0.00035757,7]
[312102550,1705625445488,-440.66945607,0.00035757,7]
[312102551,1705625445497,-500.0,0.00035757,7]
[312102552,1705625445506,-500.0,0.00035757,7]
[312102553,1705625445516,-500.0,0.00035757,7]
[312102554,1705625445525,-492.79638923,0.00035757,7]
[312102555,1705625445535,-500.0,0.00035757,7]
[312102556,1705625445545,-500.0,0.00035757,7]
[312102557,1705625445556,-292.13215606,0.00035757,7]
[312102558,1705625445565,-500.0,0.00035758,3]
[312102559,1705625445574,-500.0,0.00035758,3]
[312102560,1705625445584,-167.55025227,0.00035758,3]
[312102561,1705625445593,-500.0,0.00035758,3]
[312102562,1705625445603,-2360.89,0.00035758,3]
[312102563,1705625445612,-1510.07,0.00035758,3]
[312102564,1705625445622,-861.18,0.00035758,3]
[312102565,1705625445631,-580.21137116,0.00035758,3]
[312102566,1705625445641,-2133.38,0.00035758,3]
[312102567,1705625445651,-17328.84,0.00035758,3]
[312102568,1705625445660,-966.93,0.00035758,3]
[312102569,1705625445669,-623.03,0.00035758,3]
[312102570,1705625445679,-500.0,0.00035758,3]
[312102571,1705625445688,-500.0,0.00035758,3]
[312102572,1705625445697,-1933.59,0.00035758,3]
[312102573,1705625445707,-500.0,0.00035758,3]
[312102574,1705625445716,-3658.34,0.00035758,3]
[312102575,1705625445726,-2236.65,0.00035758,3]
[312102576,1705625445735,-502.54,0.00035758,3]
[312102577,1705625445744,-1754.03,0.00035758,3]
[312102578,1705625445753,-1955.28,0.00035758,3]
[312102579,1705625445762,-10585.88,0.00035758,3]
[312102580,1705625445771,-233.2988435,0.00035758,3]
[312102581,1705625445780,-3286.24,0.00035758,3]
[312102582,1705625445789,-1908.6,0.00035758,3]
[312102583,1705625445798,-827.49,0.00035758,3]
[312102584,1705625445808,-1936.64,0.00035758,3]
[312102585,1705625445817,-1037.25,0.00035758,3]
[312102586,1705625445826,-813.16,0.00035758,3]
[312102587,1705625445835,-3748.65,0.00035758,3]
[312102588,1705625445844,-500.0,0.00035758,3]
[312102589,1705625445854,-500.0,0.00035758,3]
[312102590,1705625445863,-721.55,0.00035758,3]
[312102591,1705625445872,-715.86,0.00035758,3]
[312102592,1705625445881,-500.0,0.00035758,3]
[312102593,1705625445890,-783.17,0.00035758,3]
[312102594,1705625445899,-4642.75,0.00035758,3]
[312102595,1705625445908,-4849.07,0.00035758,3]
[312102596,1705625445918,-873.57,0.00035758,3]
[312102597,1705625445927,-435.91897131,0.00035758,3]
[312102598,1705625445936,-500.0,0.00035758,3]
[312102599,1705625445945,-1471.33,0.00035758,3]
[312102600,1705625445954,-637.61,0.00035758,3]
[312102601,1705625445963,-500.0,0.00035758,14]
[312102602,1705625445972,-1295.34,0.00035758,3]
[312102603,1705625445981,-636.38,0.00035758,3]
[312102604,1705625445990,-500.0,0.00035758,3]
[312102606,1705625445999,-2091.715366,0.00035758,2]
[312102608,1705625446008,-2091.715366,0.00035758,2]
[312102610,1705625446017,-151.0,0.00035909,4]
[312102611,1705625446026,-182.33895056,0.00035932,2]
[312102612,1705625446035,-500.0,0.00036032,3]
[312102613,1705625446044,-500.0,0.00036032,3]
[312102615,1705625446053,-500.0,0.00036032,3]
[312102616,1705625446063,-2360.89,0.00036032,3]
[312102617,1705625446071,-1510.07,0.00036032,3]
[312102618,1705625446080,-861.18,0.00036032,3]
[312102619,1705625446091,-2133.38,0.00036032,3]
[312102620,1705625446102,-17328.84,0.00036032,3]
[312102621,1705625446111,-966.93,0.00036032,3]
[312102623,1705625446121,-623.03,0.00036032,3]
[312102624,1705625446131,-500.0,0.00036032,3]
[312102625,1705625446140,-500.0,0.00036032,3]
[312102626,1705625446149,-1933.59,0.00036032,3]
[312102627,1705625446158,-500.0,0.00036032,3]
[312102628,1705625446167,-3658.34,0.00036032,3]
[312102629,1705625446176,-2236.65,0.00036032,3]
[312102630,1705625446185,-502.54,0.00036032,3]
[312102631,1705625446195,-1754.03,0.00036032,3]
[312102632,1705625446205,-1955.28,0.00036032,3]
[312102633,1705625446216,-10585.88,0.00036032,3]
[312102634,1705625446225,-3286.24,0.00036032,3]
[312102635,1705625446234,-1908.6,0.00036032,3]
[312102636,1705625446243,-827.49,0.00036032,3]
[312102637,1705625446253,-1936.64,0.00036032,3]
[312102638,1705625446264,-1037.25,0.00036032,3]
[312102639,1705625446274,-813.16,0.00036032,3]
[312102640,1705625446285,-3748.65,0.00036032,3]
[312102641,1705625446294,-500.0,0.00036032,3]
[312102642,1705625446303,-500.0,0.00036032,3]
[312102643,1705625446312,-721.55,0.00036032,3]
[312102644,1705625446321,-715.86,0.00036032,3]
[312102645,1705625446330,-422.95451956,0.00036032,3]
[312102646,1705625446340,-783.17,0.00036032,3]
[312102648,1705625446349,-4642.75,0.00036032,3]
[312102649,1705625446359,-4849.07,0.00036032,3]
[312102653,1705625446424,-873.57,0.00036032,3]
[312102654,1705625446440,-500.0,0.00036032,3]
[312102655,1705625446450,-1471.33,0.00036032,3]
[312102656,1705625446461,-637.61,0.00036032,3]
[312102657,1705625446471,-500.0,0.00036032,14]
[312102658,1705625446480,-1295.34,0.00036032,3]
[312102659,1705625446489,-636.38,0.00036032,3]
[312102660,1705625446498,-500.0,0.00036032,3]
[312102661,1705625446508,-2091.715366,0.00036032,2]
[312102662,1705625446517,-2091.715366,0.00036032,2]
[312102663,1705625446526,-161.69,0.00036305,2]
[312102664,1705625446536,-500.0,0.00036306,3]
[312102666,1705625446546,-500.0,0.00036306,3]
[312102667,1705625446556,-500.0,0.00036306,3]
[312102668,1705625446565,-2360.89,0.00036306,3]
[312102669,1705625446574,-1510.07,0.00036306,3]
[312102670,1705625446583,-861.18,0.00036306,3]
[312102671,1705625446593,-2133.38,0.00036306,3]
[312102672,1705625446602,-17328.84,0.00036306,3]
[312102673,1705625446611,-966.93,0.00036306,3]
[312102674,1705625446620,-623.03,0.00036306,3]
[312102675,1705625446629,-500.0,0.00036306,3]
[312102676,1705625446638,-500.0,0.00036306,3]
[312102677,1705625446648,-500.0,0.00036306,3]
[312102678,1705625446657,-1933.59,0.00036306,3]
[312102679,1705625446666,-3658.34,0.00036306,3]
[312102680,1705625446675,-2236.65,0.00036306,3]
[312102681,1705625446684,-502.54,0.00036306,3]
[312102682,1705625446693,-1754.03,0.00036306,3]
[312102683,1705625446702,-1955.28,0.00036306,3]
[312102684,1705625446711,-10585.88,0.00036306,3]
[312102685,1705625446721,-3286.24,0.00036306,3]
[312102686,1705625446730,-1908.6,0.00036306,3]
[312102687,1705625446739,-827.49,0.00036306,3]
[312102688,1705625446748,-1936.64,0.00036306,3]
[312102690,1705625446757,-1037.25,0.00036306,3]
[312102691,1705625446767,-813.16,0.00036306,3]
[312102692,1705625446775,-1014.48265275,0.00036306,3]
[312102694,1705625446969,-2620.03271775,0.00034104,3]
[312102695,1705625446980,-50.33728225,0.00034104,3]
[312102696,1705625446989,-2126.8705083,0.00036306,3]
[312102697,1705625447002,-607.29683895,0.00036306,3]
[312102698,1705625447010,-500.0,0.00036306,3]
[312102699,1705625447019,-500.0,0.00036306,3]
[312102700,1705625447029,-721.55,0.00036306,3]
[312102701,1705625447038,-715.86,0.00036306,3]
[312102702,1705625447047,-783.17,0.00036306,3]
[312102703,1705625447056,-4158.4853705,0.00036306,3]
[312102704,1705625447101,-484.2646295,0.00036306,3]
[312102705,1705625447110,-4849.07,0.00036306,3]
[312102706,1705625447119,-768.21326428,0.00036306,3]
[312102707,1705625447130,-105.35673572,0.00036306,3]
[312102708,1705625447139,-436.28087544,0.00036306,3]
[312102837,1705626343269,-294.63708493,0.00024998,2]
[312102838,1705626343292,-846.03402293,0.00024999,2]
[312102878,1705626546310,-294.57737238,0.00024998,2]
[312102879,1705626546330,-3964.29145169,0.00024999,2]
[312102880,1705626546349,-2723.58008451,0.00025,2]
[312102881,1705626547108,-8405.072991,0.00025,2]
[312102882,1705626547136,-188.194615,0.00027499,15]
[312102884,1705626567103,-11.805385,0.00027499,15]
[312102885,1705626567123,-161.588,0.00030137,2]
[312102886,1705626567143,-280.0,0.00030249,15]
[312102887,1705626567162,-154.09075105,0.00030546,7]
[312102888,1705626567182,-732.96040235,0.00030699,30]
[312102889,1705626574089,-27.17771209,0.00030699,30]
[312102890,1705626574109,-3904.6934074,0.00031313,2]
[312102891,1705626580804,161.588,0.00030137,2]